bitfinex/quotes_ETHUSD_20210701
["timestamp","ask_amount","ask_price","bid_price","bid_amount"]
[1625183438275,24.1,2115.9,2115.5,0.01034365]
[1625183438423,28.6746,2115.9,2115.5,0.01034365]
[1625183438579,9.45394,2115.7,2115.5,0.01034365]
[1625183438725,12.35394,2115.7,2115.5,0.01034365]
[1625183438826,5.40217,2115.8,2115.3,0.02199947]
[1625183438927,0.01897345,2116.3,2115.3,0.02199947]
[1625183439073,0.01897345,2116.3,2115.4,0.15]
[1625183439723,9.44778,2115.9,2115.4,0.21]
[1625183439925,7.0858,2116.1,2115.4,0.21]
[1625183440023,0.01897345,2116.3,2115.5,3.6]
[1625183440226,0.01897345,2116.3,2115.6,0.15]
[1625183440529,0.01897345,2116.3,2115.6,0.16034365]
[1625183441565,0.01897345,2116.3,2115.6,0.15]
[1625183442422,11.80895,2117.2,2115.6,4.9499]
[1625183442520,11.80895,2117.2,2115.6,13.5599]
[1625183442619,11.80895,2117.2,2115.7,0.12]
[1625183442820,11.80895,2117.2,2115.8,0.15]
[1625183443139,17.98795,2117.2,2115.8,0.15]
[1625183443290,22.99795,2117.2,2115.8,0.16897345]
[1625183443543,7.08435,2117.1,2115.8,0.16897345]
[1625183443843,0.01422024,2117.3,2116.2,7.2628]
[1625183443943,0.01422024,2117.3,2116.2,3.6628]
[1625183444044,0.01422024,2117.3,2116.6,3.6]
[1625183444243,0.01422024,2117.3,2116.7,25.2]
[1625183444391,0.01422024,2117.3,2116.7,3.9602]
[1625183444497,0.01422024,2117.3,2116.7,8.9702]
[1625183444596,0.01422024,2117.3,2116.7,3.9602]
[1625183444696,0.01422024,2117.3,2116.7,3.8102]
[1625183444796,1.53962024,2117.3,2116.3,0.01034365]
[1625183444896,4.65259079,2116.8,2116.3,0.01034365]
[1625183445144,4.65259079,2116.8,2116.2,0.01034365]
[1625183445315,4.65259079,2116.8,2116.2,0.16034365]
[1625183445648,4.65259079,2116.8,2116.2,0.15]
[1625183445947,4.65259079,2116.8,2116.3,0.1]
[1625183446196,4.65259079,2116.8,2116.4,0.15]
[1625183446502,7.08554,2116.6,2116.2,0.15]
[1625183446599,7.08554,2116.6,2115.8,0.0293171]
[1625183446796,7.08554,2116.6,2115.9,0.15]
[1625183447584,0.01639079,2116.8,2115.9,0.15]
[1625183447944,0.01639079,2116.8,2115.8,0.01897345]
[1625183448045,3.31869079,2116.8,2115.8,0.01897345]
[1625183448493,8.32869079,2116.8,2115.8,0.01897345]
[1625183448593,3.31869079,2116.8,2115.8,0.01897345]
[1625183448698,8.32869079,2116.8,2115.8,0.01897345]
[1625183448796,3.46869079,2116.8,2115.8,0.01897345]
[1625183448994,3.31869079,2116.8,2115.8,0.01897345]
[1625183449145,7.08578,2116.6,2115.8,0.01897345]
[1625183449248,7.08578,2116.6,2115.8,0.16897345]
[1625183449652,0.01639079,2116.8,2115.8,0.16897345]
[1625183449860,0.01639079,2116.8,2115.8,3.86807345]
[1625183449959,0.01639079,2116.8,2115.9,3.6]
[1625183450057,0.01639079,2116.8,2115.9,8.61]
[1625183450159,0.01639079,2116.8,2115.9,16.61]
[1625183450257,0.01639079,2116.8,2116.0,0.15]
[1625183450611,0.01639079,2116.8,2116.0,0.16034365]
[1625183452428,7.10129079,2116.8,2116.0,0.16034365]
[1625183452529,7.10129079,2116.8,2116.0,0.01034365]
[1625183452877,7.00129079,2116.8,2116.0,0.01034365]
[1625183452975,7.00129079,2116.8,2115.9,0.01034365]
[1625183453584,7.00129079,2116.8,2115.8,0.16897345]
[1625183453585,10.29789079,2116.8,2115.8,0.16897345]
[1625183453680,10.29789079,2116.8,2116.3,0.01639079]
[1625183453830,0.08,2116.7,2116.3,0.01639079]
[1625183453928,8.3066,2116.8,2116.3,0.01639079]
[1625183454032,3.2966,2116.8,2116.3,0.01639079]
[1625183454545,8.3066,2116.8,2116.3,0.01639079]
[1625183454647,3.2966,2116.8,2116.3,0.01639079]
[1625183454847,8.3066,2116.8,2116.3,0.01639079]
[1625183455447,7.08707,2116.5,2116.3,0.01639079]
[1625183455547,12.09707,2116.5,2116.3,0.01639079]
[1625183456249,7.08707,2116.5,2116.3,0.01639079]
[1625183460258,32.5,2116.4,2115.8,0.01897345]
[1625183460359,32.54574721,2116.4,2115.8,0.01897345]
[1625183460456,7.0884,2116.1,2115.8,0.01897345]
[1625183460558,12.0984,2116.1,2115.8,0.01897345]
[1625183460661,7.0384,2116.1,2115.8,0.01897345]
[1625183463044,9.44943,2116.6,2115.8,0.01897345]
[1625183464172,3.5436736,2116.3,2115.8,0.01897345]
[1625183465373,7.08729,2116.1,2115.8,0.01897345]
[1625183465673,12.99311,2116.6,2115.8,0.01897345]
[1625183465674,9.44943,2116.6,2115.9,5.0291]
[1625183465770,10.6936,2116.7,2115.9,8.6291]
[1625183465866,10.6936,2116.7,2115.9,10.0391]
[1625183465970,10.6936,2116.7,2116.1,3.6]
[1625183466071,0.01639079,2116.8,2116.1,8.61]
[1625183466219,0.01639079,2116.8,2116.2,0.15]
[1625183466617,0.01639079,2116.8,2116.2,0.16034365]
[1625183467068,3.55913939,2116.8,2116.2,0.16034365]
[1625183467418,3.55913939,2116.8,2116.2,0.15]
[1625183467520,7.08546,2116.5,2116.2,0.15]
[1625183468242,9.4475,2116.7,2116.2,0.15]
[1625183473796,9.3475,2116.7,2116.2,0.15]
[1625183474990,9.2475,2116.7,2116.2,0.15]
[1625183475794,0.01639079,2116.8,2116.2,3.75]
[1625183475994,0.01639079,2116.8,2116.2,5.01]
[1625183476140,0.01639079,2116.8,2116.1,3.6799]
[1625183476248,0.01639079,2116.8,2116.3,0.01034365]
[1625183476441,0.01639079,2116.8,2116.4,0.15]
[1625183477347,7.10064079,2116.8,2116.4,0.15]
[1625183477621,7.10064079,2116.8,2116.2,0.01034365]
[1625183477720,11.49354079,2116.8,2116.2,0.01034365]
[1625183477869,3.54294,2116.7,2116.2,0.01034365]
[1625183478170,4.1,2116.6,2116.0,0.01034365]
[1625183478534,7.8078418,2116.3,2116.0,0.01034365]
[1625183478621,9.3322418,2116.3,2116.0,0.01034365]
[1625183479019,9.3322418,2116.3,2115.8,0.01897345]
[1625183479699,7.08634,2116.1,2115.8,0.01897345]
[1625183479949,4.28891571,2116.1,2115.8,0.01897345]
[1625183481349,7.83258681,2116.1,2115.8,0.01897345]
[1625183481458,3.5436711,2116.1,2115.8,0.01897345]
[1625183482210,8.2089711,2116.1,2115.8,0.01897345]
[1625183482315,7.0868,2116.0,2115.8,0.01897345]
[1625183483516,10.63083,2116.0,2115.8,0.01897345]
[1625183484363,7.0868,2116.0,2115.8,0.01897345]
[1625183484517,8.2089711,2116.1,2115.8,0.01897345]
[1625183484613,4.6653,2116.1,2115.8,0.01897345]
[1625183487489,11.75237,2116.1,2115.8,0.01897345]
[1625183487588,4.6653,2116.1,2115.8,0.01897345]
[1625183487741,3.5432129,2116.4,2115.8,0.01897345]
[1625183488616,7.08614,2116.2,2115.8,0.01897345]
[1625183489465,10.68894,2116.2,2115.8,0.01897345]
[1625183489568,14.2325567,2116.2,2115.8,0.01897345]
[1625183489667,7.1464167,2116.2,2115.8,0.01897345]
[1625183490816,7.08741,2116.0,2115.8,0.01897345]
[1625183492216,10.63149,2116.0,2115.8,0.01897345]
[1625183492990,14.04199,2116.0,2115.8,0.01897345]
[1625183493092,14.90999,2116.0,2115.8,0.01897345]
[1625183493293,0.06,2115.9,2115.8,0.01897345]
[1625183493394,7.82258,2116.0,2115.8,0.01897345]
[1625183494192,28.13839,2115.9,2115.8,0.01897345]
[1625183494293,7.08839,2115.9,2115.8,0.01897345]
[1625183494495,12.4,2115.8,2115.7,7.345e-05]
[1625183494596,7.08839,2115.9,2115.7,7.345e-05]
[1625183495101,14.1775027,2115.9,2115.7,7.345e-05]
[1625183495205,22.25253,2115.8,2115.7,7.345e-05]
[1625183495300,9.45253,2115.8,2115.7,7.345e-05]
[1625183495549,9.51253,2115.8,2115.7,7.345e-05]
[1625183495850,9.45253,2115.8,2115.7,7.345e-05]
[1625183502359,10.6328927,2115.9,2115.7,7.345e-05]
[1625183503013,9.45117,2115.8,2115.7,7.345e-05]
[1625183503714,3.5444527,2115.9,2115.7,7.345e-05]
[1625183504552,12.0982,2115.9,2115.7,7.345e-05]
[1625183504654,9.0978,2115.9,2115.7,7.345e-05]
[1625183504755,12.87,2115.8,2115.3,0.00017292]
[1625183504909,32.4,2115.7,2115.3,0.00017292]
[1625183505107,0.14,2115.6,2115.3,0.00017292]
[1625183505304,0.18,2115.5,2115.3,0.00017292]
[1625183505655,7.27099,2115.5,2115.3,0.00017292]
[1625183505903,14.84274024,2115.5,2115.3,0.00017292]
[1625183506001,9.83274024,2115.5,2115.3,0.00017292]
[1625183506103,14.84274024,2115.5,2115.3,0.00017292]
[1625183506292,27.45,2115.3,2115.0,99.48151657]
[1625183506387,3.54614,2115.2,2115.0,99.48151657]
[1625183506491,3.54614,2115.2,2115.0,94.24201657]
[1625183506586,8.55614,2115.2,2115.0,94.24201657]
[1625183506687,15.25,2115.1,2115.0,94.24201657]
[1625183506786,0.1,2115.1,2115.0,94.24201657]
[1625183506887,15.6485,2115.2,2115.0,94.24201657]
[1625183507238,19.19464,2115.2,2115.0,94.24201657]
[1625183507342,14.18464,2115.2,2115.0,94.24201657]
[1625183507779,19.19464,2115.2,2115.0,94.24201657]
[1625183509441,14.18464,2115.2,2115.0,94.24201657]
[1625183510875,19.19464,2115.2,2115.0,94.24201657]
[1625183510973,14.18464,2115.2,2115.0,94.24201657]
[1625183512728,19.19464,2115.2,2115.0,94.24201657]
[1625183513282,10.5,2115.1,2115.0,94.24201657]
[1625183513381,0.2,2115.1,2115.0,94.24201657]
[1625183514083,26.35,2115.1,2115.0,78.37581657]
[1625183514285,31.36,2115.1,2115.0,78.37581657]
[1625183514386,5.21,2115.1,2115.0,78.37581657]
[1625183514533,0.2,2115.1,2115.0,78.37581657]
[1625183514634,5.21,2115.1,2115.0,78.37581657]
[1625183514884,0.2,2115.1,2115.0,78.37581657]
[1625183517427,6.25,2115.1,2115.0,78.37581657]
[1625183517681,0.2,2115.1,2115.0,78.37581657]
[1625183518688,28.25,2115.1,2115.0,62.51321657]
[1625183518985,28.25,2115.1,2115.0,46.65061657]
[1625183519087,33.26,2115.1,2115.0,46.65061657]
[1625183519335,5.21,2115.1,2115.0,46.65061657]
[1625183519772,0.2,2115.1,2115.0,46.65061657]
[1625183519872,5.21,2115.1,2115.0,46.65061657]
[1625183520273,0.2,2115.1,2115.0,46.65061657]
[1625183521582,21.62505691,2115.2,2115.0,46.65061657]
[1625183521784,16.61505691,2115.2,2115.0,46.65061657]
[1625183522018,10.6385,2115.2,2115.0,46.65061657]
[1625183522749,15.02199947,2115.8,2115.0,46.65061657]
[1625183522847,4.7282,2115.5,2115.0,46.65061657]
[1625183523049,0.06,2115.4,2115.0,46.65061657]
[1625183523249,7.09236,2115.2,2115.0,46.65061657]
[1625183523447,12.10236,2115.2,2115.0,46.65061657]
[1625183523794,15.6485,2115.2,2115.0,46.65061657]
[1625183526392,12.10236,2115.2,2115.0,46.65061657]
[1625183526734,5.01,2115.2,2115.0,46.65061657]
[1625183526936,8.5561398,2115.3,2115.0,46.65061657]
[1625183527134,12.1021398,2115.3,2115.0,46.65061657]
[1625183527237,3.54614,2115.2,2115.0,46.65061657]
[1625183527485,8.55614,2115.2,2115.0,46.65061657]
[1625183527698,10.6385,2115.2,2115.0,46.65061657]
[1625183527839,7.09236,2115.2,2115.0,46.65061657]
[1625183529342,13.0026198,2115.3,2115.0,46.65061657]
[1625183529441,3.54528,2115.6,2115.1,32.1728]
[1625183529539,14.20245177,2115.8,2115.1,32.1728]
[1625183529540,9.47566947,2115.8,2115.1,37.5128]
[1625183529639,0.02199947,2115.8,2115.2,0.00847028]
[1625183529840,0.02199947,2115.8,2115.3,0.19]
[1625183530394,0.02199947,2115.8,2115.4,0.1]
[1625183530594,0.02199947,2115.8,2115.5,0.15]
[1625183530697,0.01897345,2116.3,2115.6,20.3]
[1625183530796,0.01897345,2116.3,2115.6,3.2487]
[1625183530944,0.01897345,2116.3,2115.7,0.15]
[1625183531653,7.10588345,2116.3,2115.7,0.15]
[1625183534398,3.56291635,2116.3,2115.7,0.15]
[1625183534698,8.57291635,2116.3,2115.7,0.15]
[1625183534799,3.56291635,2116.3,2115.7,0.15]
[1625183536481,7.08799,2116.0,2115.7,0.15]
[1625183538565,10.65073635,2116.3,2115.7,0.15]
[1625183538764,3.56291635,2116.3,2115.7,0.15]
[1625183539916,7.08782,2116.2,2115.7,0.15]
[1625183540942,3.56291635,2116.3,2115.7,0.15]
[1625183541038,0.01897345,2116.3,2115.7,0.15]
[1625183541534,0.01897345,2116.3,2115.7,3.2874]
[1625183541636,0.01897345,2116.3,2115.7,8.2974]
[1625183541838,0.01897345,2116.3,2115.7,22.23582058]
[1625183541939,0.01897345,2116.3,2116.0,7.08481]
[1625183542090,0.01897345,2116.3,2116.1,0.15]
[1625183542187,0.01897345,2116.3,2116.1,3.75]
[1625183542409,0.01897345,2116.3,2116.2,22.31]
[1625183542546,0.01897345,2116.3,2116.2,27.0747]
[1625183542648,0.01639079,2116.8,2116.3,20.0]
[1625183542848,0.01639079,2116.8,2116.4,0.15]
[1625183543050,0.01639079,2116.8,2116.5,7.1237]
[1625183543153,0.01639079,2116.8,2116.5,7.0837]
[1625183543246,0.01639079,2116.8,2116.6,0.15]
[1625183545445,7.10186079,2116.8,2116.6,0.15]
[1625183545700,0.01639079,2116.8,2116.6,0.15]
[1625183547096,0.01639079,2116.8,2116.7,1.0603]
[1625183548349,0.01639079,2116.8,2116.6,0.15]
[1625183548601,0.01639079,2116.8,2116.3,0.15]
[1625183548703,4.84659079,2116.8,2116.3,0.15]
[1625183548802,4.84659079,2116.8,2115.9,0.15]
[1625183548904,9.88607424,2116.8,2115.9,0.15]
[1625183549157,0.09267684,2116.7,2115.8,21.102]
[1625183549505,0.03267684,2116.7,2115.8,21.102]
[1625183549605,7.08725,2116.3,2115.8,21.102]
[1625183550508,11.75895,2116.3,2115.8,21.102]
[1625183550960,4.6717,2116.3,2115.8,21.102]
[1625183551210,4.6717,2116.3,2115.9,0.15]
[1625183551664,4.6717,2116.3,2115.9,7.23595]
[1625183551763,0.01639079,2116.8,2115.9,10.77035]
[1625183551916,0.01639079,2116.8,2116.0,0.04]
[1625183552062,0.01639079,2116.8,2116.1,0.15]
[1625183552828,0.01639079,2116.8,2116.1,9.59626]
[1625183553023,0.01639079,2116.8,2116.1,14.60626]
[1625183553670,0.01639079,2116.8,2116.1,9.59626]
[1625183554420,0.01639079,2116.8,2116.1,14.64996]
[1625183554620,0.01639079,2116.8,2116.2,0.16]
[1625183554824,0.01639079,2116.8,2116.3,0.15]
[1625183555825,0.01639079,2116.8,2116.5,7.08398]
[1625183556022,0.01639079,2116.8,2116.6,4.3308]
[1625183556223,0.01422024,2117.3,2116.7,24.15]
[1625183556476,0.01422024,2117.3,2116.8,0.27]
[1625183556977,0.01422024,2117.3,2116.8,7.35252]
[1625183557074,0.01422024,2117.3,2116.9,3.6]
[1625183557176,0.01422024,2117.3,2116.9,6.50958158]
[1625183557324,0.01422024,2117.3,2117.0,0.29]
[1625183557673,0.01422024,2117.3,2117.0,0.15]
[1625183560270,0.01422024,2117.3,2117.0,7.23184]
[1625183560523,0.01422024,2117.3,2117.1,0.06]
[1625183560618,0.01422024,2117.3,2117.1,4.5021]
[1625183560720,0.01422024,2117.3,2117.2,14.35]
[1625183560816,0.01422024,2117.3,2117.2,0.15]
[1625183560922,0.01422024,2117.3,2117.2,5.16]
[1625183561319,0.01422024,2117.3,2117.2,7.23124]
[1625183561418,0.01422024,2117.3,2117.2,12.24124]
[1625183561521,0.01422024,2117.3,2117.2,20.34124]
[1625183561673,0.01422024,2117.3,2117.2,23.370079]
[1625183561824,10.1189,2118.7,2117.3,32.45]
[1625183561920,10.1189,2118.7,2117.4,0.08601427]
[1625183562017,10.1189,2118.7,2117.4,0.23601427]
[1625183562171,10.1189,2118.7,2117.6,7.17]
[1625183562370,7.08007,2118.5,2117.7,0.15]
[1625183562473,10.1189,2118.7,2117.7,0.15]
[1625183563380,0.00977967,2118.8,2117.7,3.05958158]
[1625183563476,0.00977967,2118.8,2117.9,3.6]
[1625183563674,0.00977967,2118.8,2118.0,0.15]
[1625183564926,0.00977967,2118.8,2118.0,9.58669]
[1625183565078,0.00977967,2118.8,2118.0,14.59669]
[1625183565176,0.00977967,2118.8,2118.1,3.6]
[1625183565282,0.00977967,2118.8,2118.1,8.0453]
[1625183565379,21.7379,2119.7,2118.2,3.75]
[1625183565475,10.9532,2119.7,2118.2,0.30882987]
[1625183565635,10.9532,2119.7,2118.8,0.01254884]
[1625183565780,10.9532,2119.7,2118.9,3.78]
[1625183565876,10.9532,2119.7,2118.9,3.93]
[1625183565977,10.9532,2119.7,2118.9,8.94]
[1625183566132,10.9532,2119.7,2119.0,7.07467]
[1625183566331,10.9532,2119.7,2119.1,0.15]
[1625183568479,6.82884619,2119.3,2119.1,0.15]
[1625183569334,10.9532,2119.7,2119.1,0.15]
[1625183570168,10.9532,2119.7,2118.9,5.16]
[1625183570267,10.9532,2119.7,2118.9,0.15]
[1625183570367,10.9532,2119.7,2118.9,5.16]
[1625183570765,10.9532,2119.7,2118.9,0.15]
[1625183570867,10.9532,2119.7,2118.9,5.16]
[1625183571220,0.00811699,2119.8,2118.9,0.15]
[1625183571323,0.00811699,2119.8,2118.9,11.62798158]
[1625183571469,0.00811699,2119.8,2119.0,0.18]
[1625183571718,0.00811699,2119.8,2119.1,3.75]
[1625183571918,0.00811699,2119.8,2119.1,11.66958158]
[1625183572519,0.00811699,2119.8,2119.1,8.76]
[1625183576628,0.00811699,2119.8,2119.1,16.76]
[1625183578845,0.00811699,2119.8,2119.1,3.75]
[1625183578947,0.00811699,2119.8,2119.1,0.15]
[1625183586158,0.00811699,2119.8,2119.1,7.22434]
[1625183586361,0.00811699,2119.8,2119.1,12.23434]
[1625183586458,0.00811699,2119.8,2119.1,20.23434]
[1625183586558,0.00811699,2119.8,2119.1,13.16]
[1625183587060,0.00811699,2119.8,2119.1,5.16]
[1625183587158,0.00811699,2119.8,2119.1,0.15]
[1625183587487,0.00811699,2119.8,2119.1,7.22457]
[1625183587746,0.15811699,2119.9,2119.1,12.23457]
[1625183587847,0.15811699,2119.9,2119.1,0.15]
[1625183589452,0.15811699,2119.9,2119.1,7.22445]
[1625183589550,0.15811699,2119.9,2119.1,5.16]
[1625183589777,0.15811699,2119.9,2119.1,0.15]
[1625183589877,0.15811699,2119.9,2119.1,5.16]
[1625183590024,0.15811699,2119.9,2119.1,0.15]
[1625183590677,0.15811699,2119.9,2119.1,7.22451]
[1625183590775,0.15811699,2119.9,2119.1,0.15]
[1625183590874,0.15811699,2119.9,2119.1,5.16]
[1625183591074,0.15811699,2119.9,2119.1,0.15]
[1625183591173,0.15811699,2119.9,2119.1,5.16]
[1625183591376,0.15811699,2119.9,2119.1,0.15]
[1625183591577,0.10811699,2119.9,2119.1,0.15]
[1625183592358,0.10811699,2119.9,2119.3,0.00811699]
[1625183592555,0.10811699,2119.9,2119.3,0.15811699]
[1625183593707,0.10811699,2119.9,2119.3,0.00811699]
[1625183594797,7.18310699,2119.9,2119.3,0.00811699]
[1625183594994,0.2,2119.8,2119.3,0.00811699]
[1625183595345,0.10811699,2119.9,2119.3,0.00811699]
[1625183596048,7.07588,2119.6,2119.3,0.00811699]
[1625183596700,0.10811699,2119.9,2119.3,0.00811699]
[1625183597096,7.07588,2119.6,2119.3,0.00811699]
[1625183597394,0.06,2119.5,2119.3,0.00811699]
[1625183598096,9.43453,2119.8,2119.3,0.00811699]
[1625183598249,0.10811699,2119.9,2119.3,7.08286699]
[1625183598250,7.18313699,2119.9,2119.3,7.08286699]
[1625183598495,7.18313699,2119.9,2119.3,0.00811699]
[1625183600200,3.5378,2119.8,2119.3,0.00811699]
[1625183600449,0.1,2119.7,2119.3,0.00811699]
[1625183600549,7.07578,2119.6,2119.3,0.00811699]
[1625183601139,11.83018,2119.6,2119.3,0.00811699]
[1625183603001,7.07578,2119.6,2119.3,0.00811699]
[1625183603098,3.53801,2119.7,2119.3,0.00811699]
[1625183603319,0.10811699,2119.9,2119.4,0.15]
[1625183604773,0.10811699,2119.9,2119.3,0.00811699]
[1625183604774,3.53763,2119.8,2119.3,0.00811699]
[1625183604921,3.73763,2119.8,2119.3,0.00811699]
[1625183605117,7.07619,2119.6,2119.3,0.00811699]
[1625183606160,10.61445,2119.6,2119.3,0.00811699]
[1625183606412,7.07659,2119.5,2119.3,0.00811699]
[1625183611101,3.53826,2119.6,2119.3,0.00811699]
[1625183611200,0.10811699,2119.9,2119.3,3.70821699]
[1625183611398,0.10811699,2119.9,2119.3,8.87917724]
[1625183612150,0.10811699,2119.9,2119.3,15.95377724]
[1625183612553,0.10811699,2119.9,2119.3,3.86917724]
[1625183612753,0.10811699,2119.9,2119.3,3.85821699]
[1625183613028,0.10811699,2119.9,2119.3,8.86821699]
[1625183613418,0.10811699,2119.9,2119.3,3.85821699]
[1625183613518,7.18285699,2119.9,2119.3,3.85821699]
[1625183614974,7.18285699,2119.9,2119.3,8.86821699]
[1625183615527,7.18285699,2119.9,2119.3,3.85821699]
[1625183616027,7.18285699,2119.9,2119.3,8.86821699]
[1625183616480,0.10811699,2119.9,2119.3,8.86821699]
[1625183616986,0.10811699,2119.9,2119.4,0.06]
[1625183617192,0.10811699,2119.9,2119.4,7.22386]
[1625183617386,0.10811699,2119.9,2119.4,12.23386]
[1625183618787,0.10811699,2119.9,2119.4,5.16]
[1625183618989,0.10811699,2119.9,2119.4,0.15]
[1625183619141,0.10811699,2119.9,2119.4,5.16]
[1625183619238,0.10811699,2119.9,2119.4,0.15]
[1625183619338,0.10811699,2119.9,2119.4,5.16]
[1625183619590,0.10811699,2119.9,2119.4,0.15]
[1625183620891,0.10811699,2119.9,2119.3,0.00811699]
[1625183621883,7.18252699,2119.9,2119.3,0.00811699]
[1625183622786,3.53767,2119.7,2119.3,0.00811699]
[1625183622940,7.07606,2119.5,2119.3,0.00811699]
[1625183623083,11.96016,2119.5,2119.3,0.00811699]
[1625183625348,12.6,2119.4,2118.8,15.26994619]
[1625183625450,3.53861,2119.2,2118.8,15.26994619]
[1625183625600,5.93201,2119.2,2118.8,15.26994619]
[1625183625700,5.93201,2119.2,2118.8,10.25994619]
[1625183626379,7.07745,2119.0,2118.8,10.25994619]
[1625183627280,5.93201,2119.2,2118.8,10.25994619]
[1625183627383,7.07739,2119.1,2118.8,10.25994619]
[1625183628659,4.52271,2119.2,2118.8,10.25994619]
[1625183628760,3.53861,2119.2,2118.8,10.25994619]
[1625183629458,10.61556,2119.2,2118.8,10.25994619]
[1625183630455,3.53861,2119.2,2118.8,10.25994619]
[1625183630560,7.07751,2119.0,2118.8,10.25994619]
[1625183631256,3.53861,2119.2,2118.8,10.25994619]
[1625183632703,7.07745,2119.0,2118.8,10.25994619]
[1625183633657,5.7,2119.5,2118.8,10.25994619]
[1625183633755,3.53861,2119.2,2118.8,10.25994619]
[1625183634155,0.06,2119.1,2118.8,10.20994619]
[1625183634607,3.53861,2119.2,2118.8,10.20994619]
[1625183635232,7.07745,2119.0,2118.8,10.20994619]
[1625183637528,7.08682269,2119.3,2118.8,10.20994619]
[1625183637873,0.00884619,2119.3,2118.8,10.20994619]
[1625183638123,3.54781619,2119.3,2118.8,10.20994619]
[1625183639034,3.53861,2119.2,2118.8,19.64964619]
[1625183639125,0.00884619,2119.3,2118.8,19.64964619]
[1625183639274,0.00884619,2119.3,2118.9,0.15]
[1625183639816,0.00884619,2119.3,2118.8,14.63964619]
[1625183639914,0.00884619,2119.3,2118.8,10.20994619]
[1625183640116,7.08512619,2119.3,2118.8,10.20994619]
[1625183640318,0.08,2119.2,2118.8,10.20994619]
[1625183641067,0.00884619,2119.3,2118.8,10.20994619]
[1625183641219,3.53855,2119.2,2118.8,10.20994619]
[1625183641681,7.07792,2119.0,2118.8,10.20994619]
[1625183641891,12.08792,2119.0,2118.8,10.20994619]
[1625183641988,7.07792,2119.0,2118.8,10.20994619]
[1625183642137,0.06,2118.9,2118.4,10.8311]
[1625183642290,3.53922,2118.7,2118.4,10.8311]
[1625183642741,10.61773,2118.7,2118.4,10.8311]
[1625183642840,3.53922,2118.7,2118.4,10.8311]
[1625183642940,3.53914,2119.2,2118.4,15.8411]
[1625183642941,3.53877,2119.0,2118.4,15.8411]
[1625183644244,3.53877,2119.0,2118.4,22.91828]
[1625183645443,10.61603,2119.0,2118.4,22.91828]
[1625183645746,3.53877,2119.0,2118.4,10.8311]
[1625183645848,3.53877,2119.0,2118.4,15.8411]
[1625183646463,10.61603,2119.0,2118.4,15.8411]
[1625183647268,14.16415619,2119.3,2118.4,15.8411]
[1625183647269,0.06,2118.9,2118.4,15.8411]
[1625183647465,3.0601,2118.9,2118.4,15.8411]
[1625183647876,10.13783,2118.9,2118.4,15.8411]
[1625183648792,3.53919,2118.7,2118.4,15.8411]
[1625183648991,10.61746,2118.7,2118.4,15.8411]
[1625183649193,3.53919,2118.7,2118.4,15.8411]
[1625183649292,3.53919,2118.7,2118.4,15.3411]
[1625183649444,3.53874,2119.0,2118.4,15.4911]
[1625183650041,3.53918,2118.9,2118.4,10.4811]
[1625183650145,7.07816,2118.7,2118.4,10.4811]
[1625183650247,10.90146,2118.7,2118.4,10.3311]
[1625183650840,3.53943,2118.6,2118.4,10.3311]
[1625183651940,10.61795,2118.6,2118.4,10.3311]
[1625183652293,9.43795,2118.9,2118.4,10.3311]
[1625183652493,9.43795,2118.9,2118.4,15.3411]
[1625183652590,9.43795,2118.9,2118.4,15.4911]
[1625183652970,9.53795,2118.9,2118.4,15.4911]
[1625183653271,9.43795,2118.9,2118.4,15.4911]
[1625183654577,9.43795,2118.9,2118.4,15.4411]
[1625183656461,9.43795,2118.9,2118.4,22.51825]
[1625183657489,9.43795,2118.9,2118.4,15.4411]
[1625183658946,3.53895,2119.0,2118.4,15.4411]
[1625183659496,10.61644,2119.0,2118.4,22.51862]
[1625183660038,3.53895,2119.0,2118.4,22.51862]
[1625183660387,3.53895,2119.0,2118.4,15.4411]
[1625183660586,7.07783,2118.8,2118.4,15.4411]
[1625183660795,3.53895,2119.0,2118.4,15.4411]
[1625183661142,3.53907,2118.9,2118.4,15.2911]
[1625183661242,3.67907,2118.9,2118.4,15.2911]
[1625183661746,7.07845,2118.7,2118.4,15.2911]
[1625183662241,12.97681,2118.9,2118.4,15.2911]
[1625183662348,12.97681,2118.9,2118.4,15.4411]
[1625183662443,3.53907,2118.9,2118.4,15.4411]
[1625183663446,3.53907,2118.9,2118.4,22.51845]
[1625183663643,3.53907,2118.9,2118.4,15.4411]
[1625183663749,3.53907,2118.9,2118.4,10.2811]
[1625183663852,0.14,2118.8,2118.4,10.2811]
[1625183664195,3.53907,2118.9,2118.4,10.2811]
[1625183665193,7.07894,2118.6,2118.4,10.2811]
[1625183665795,12.97706,2118.9,2118.4,10.2811]
[1625183666681,12.97706,2118.9,2118.4,10.4311]
[1625183667428,3.53907,2118.9,2118.4,10.4311]
[1625183668235,7.07792,2118.8,2118.4,10.4311]
[1625183668823,3.53907,2118.9,2118.4,10.2811]
[1625183668911,4.76507,2118.9,2118.4,10.2811]
[1625183669312,7.0784,2118.7,2118.4,10.2811]
[1625183669767,0.06,2118.6,2118.4,10.2811]
[1625183670311,0.9323,2118.8,2118.4,10.2811]
[1625183670666,5.01,2118.9,2118.4,10.2811]
[1625183670764,3.53946,2118.7,2118.4,10.2811]
[1625183671364,8.54946,2118.7,2118.4,10.2811]
[1625183671516,0.12,2118.6,2118.4,10.2811]
[1625183672314,7.07975,2118.5,2118.4,10.2811]
[1625183675392,7.07975,2118.5,2118.3,0.00977967]
[1625183675625,5.81,2118.4,2118.3,0.00977967]
[1625183675731,7.24057,2118.4,2118.3,0.00977967]
[1625183676178,7.08057,2118.4,2118.3,0.00977967]
[1625183681992,9.43967,2118.6,2118.3,0.00977967]
[1625183683489,7.07947,2118.5,2118.3,0.00977967]
[1625183684687,11.55117,2118.5,2118.3,0.00977967]
[1625183684935,11.38,2118.4,2118.3,0.00977967]
[1625183685137,0.08,2118.4,2118.3,0.00977967]
[1625183685236,4.4717,2118.5,2118.3,0.00977967]
[1625183686441,14.33073,2118.4,2118.3,0.00977967]
[1625183686541,7.08073,2118.4,2118.3,0.00977967]
[1625183687538,7.14073,2118.4,2118.3,0.00977967]